fUSD/lending_fUSD_20240105
["ID","MTS","AMOUNT","RATE_DAILY","PERIOD"]
[310292456,1704463905477,-500.0,0.00031232,2]
[310292457,1704463905487,-500.0,0.00031232,2]
[310292458,1704463905497,-1408.67,0.00031232,2]
[310292459,1704463905506,-500.0,0.00031232,2]
[310292460,1704463905515,-500.0,0.00031232,2]
[310292461,1704463905525,-500.0,0.00031232,2]
[310292462,1704463905534,-519.09,0.00031232,2]
[310292463,1704463905543,-500.0,0.00031232,2]
[310292464,1704463905553,-500.0,0.00031232,2]
[310292465,1704463905562,-500.0,0.00031232,2]
[310292466,1704463905572,-511.9663001,0.00031232,2]
[310292467,1704463905582,-500.0,0.00031232,2]
[310292468,1704463905591,-500.0,0.00031232,2]
[310292469,1704463905600,-500.0,0.00031232,2]
[310292470,1704463905610,-500.0,0.00031232,2]
[310292471,1704463905619,-500.0,0.00031232,2]
[310292472,1704463905629,-500.0,0.00031232,2]
[310292473,1704463905638,-1017.17,0.00031232,2]
[310292474,1704463905647,-500.0,0.00031232,2]
[310292475,1704463905657,-500.0,0.00031232,2]
[310292476,1704463905666,-500.0,0.00031232,2]
[310292477,1704463905675,-500.0,0.00031232,2]
[310292478,1704463905685,-500.0,0.00031232,2]
[310292479,1704463905694,-1228.15,0.00031232,2]
[310292480,1704463905703,-500.0,0.00031232,2]
[310292481,1704463905713,-1193.22,0.00031232,2]
[310292482,1704463905722,-500.0,0.00031232,2]
[310292483,1704463905731,-500.0,0.00031232,2]
[310292484,1704463905741,-500.0,0.00031232,2]
[310292485,1704463905750,-1709.82,0.00031232,2]
[310292486,1704463905759,-500.0,0.00031232,2]
[310292487,1704463905768,-500.0,0.00031232,2]
[310292488,1704463905779,-500.0,0.00031232,2]
[310292489,1704463905789,-500.0,0.00031232,2]
[310292490,1704463905800,-521.26,0.00031232,2]
[310292491,1704463905810,-1009.32,0.00031232,2]
[310292492,1704463905823,-500.0,0.00031232,2]
[310292493,1704463905832,-769.11,0.00031232,2]
[310292494,1704463905842,-500.0,0.00031232,2]
[310292495,1704463905851,-500.0,0.00031232,2]
[310292496,1704463905861,-500.0,0.00031232,2]
[310292497,1704463905870,-952.84,0.00031232,2]
[310292498,1704463905879,-500.0,0.00031232,2]
[310292499,1704463905889,-525.92585688,0.00031232,2]
[310292500,1704463905898,-250.1183847,0.00031232,2]
[310292501,1704463905907,-500.0,0.00031232,2]
[310292502,1704463905917,-634.11,0.00031232,2]
[310292503,1704463905926,-500.0,0.00031232,2]
[310292504,1704463905935,-1188.9,0.00031232,2]
[310292505,1704463905945,-500.0,0.00031232,2]
[310292506,1704463905954,-558.13,0.00031232,2]
[310292507,1704463905963,-773.34,0.00031232,2]
[310292508,1704463905973,-500.0,0.00031232,2]
[310292509,1704463905982,-500.0,0.00031232,2]
[310292510,1704463905992,-500.0,0.00031232,2]
[310292511,1704463906001,-500.0,0.00031232,2]
[310292512,1704463906010,-881.16,0.00031232,2]
[310292513,1704463906020,-500.0,0.00031232,2]
[310292514,1704463906029,-406.79094177,0.00031232,2]
[310292515,1704463906038,-500.0,0.00031232,2]
[310292516,1704463906048,-500.0,0.00031232,2]
[310292517,1704463906058,-1431.77,0.00031232,2]
[310292518,1704463906068,-500.0,0.00031232,2]
[310292519,1704463906077,-798.14,0.00031232,2]
[310292520,1704463906086,-500.0,0.00031232,2]
[310292521,1704463906096,-2061.68,0.00031232,2]
[310292522,1704463906105,-500.0,0.00031232,2]
[310292523,1704463906115,-500.0,0.00031232,2]
[310292524,1704463906124,-909.7,0.00031232,2]
[310292525,1704463906134,-500.0,0.00031232,2]
[310292526,1704463906143,-500.0,0.00031232,2]
[310292527,1704463906152,-1481.56,0.00031232,2]
[310292528,1704463906162,-500.0,0.00031232,2]
[310292529,1704463906171,-500.0,0.00031232,2]
[310292530,1704463906180,-1575.41,0.00031232,2]
[310292531,1704463906189,-500.0,0.00031232,2]
[310292532,1704463906199,-982.39,0.00031232,2]
[310292533,1704463906211,-500.0,0.00031232,2]
[310292534,1704463906221,-500.39,0.00031232,2]
[310292535,1704463906231,-500.0,0.00031232,2]
[310292536,1704463906240,-500.0,0.00031232,2]
[310292537,1704463906250,-500.0,0.00031232,2]
[310292538,1704463906260,-500.0,0.00031232,2]
[310292539,1704463906269,-616.4,0.00031232,2]
[310292540,1704463906278,-500.0,0.00031232,2]
[310292541,1704463906288,-500.0,0.00031232,2]
[310292542,1704463906299,-656.28,0.00031232,2]
[310292543,1704463906309,-479.71677938,0.00031232,2]
[310292544,1704463906318,-615.45,0.00031232,2]
[310292545,1704463906327,-815.67,0.00031232,2]
[310292546,1704463906337,-855.97,0.00031232,2]
[310292547,1704463906346,-500.0,0.00031232,2]
[310292548,1704463906355,-500.0,0.00031232,2]
[310292549,1704463906365,-914.92,0.00031232,2]
[310292550,1704463906374,-500.0,0.00031232,2]
[310292551,1704463906384,-759.49,0.00031232,2]
[310292552,1704463906394,-612.52,0.00031232,2]
[310292553,1704463906404,-500.0,0.00031232,2]
[310292554,1704463906413,-500.0,0.00031232,2]
[310292555,1704463906423,-511.96829165,0.00031232,2]
[310292556,1704463906433,-638.72,0.00031232,2]
[310292557,1704463906443,-500.0,0.00031232,2]
[310292558,1704463906453,-500.0,0.00031232,2]
[310292559,1704463906462,-500.0,0.00031232,2]
[310292560,1704463906471,-500.0,0.00031232,2]
[310292561,1704463906481,-500.0,0.00031232,2]
[310292562,1704463906490,-779.76,0.00031232,2]
[310292563,1704463906499,-500.0,0.00031232,2]
[310292564,1704463906509,-500.0,0.00031232,2]
[310292565,1704463906518,-546.31543465,0.00031232,2]
[310292566,1704463906528,-1184.83,0.00031232,2]
[310292567,1704463906538,-1087.44,0.00031232,2]
[310292568,1704463906549,-547.36,0.00031232,2]
[310292569,1704463906559,-500.0,0.00031232,2]
[310292570,1704463906568,-500.0,0.00031232,2]
[310292571,1704463906578,-908.56,0.00031232,2]
[310292572,1704463906587,-5038.11,0.00031232,2]
[310292573,1704463906597,-500.0,0.00031232,2]
[310292574,1704463906607,-500.0,0.00031232,2]
[310292575,1704463906616,-500.0,0.00031232,2]
[310292576,1704463906630,-500.0,0.00031232,2]
[310292577,1704463906640,-880.69,0.00031232,2]
[310292578,1704463906649,-884.22,0.00031232,2]
[310292579,1704463906658,-500.0,0.00031232,2]
[310292580,1704463906669,-500.0,0.00031232,2]
[310292581,1704463906678,-513.57292856,0.00031232,2]
[310292582,1704463906687,-828.3,0.00031232,2]
[310292583,1704463906699,-500.0,0.00031232,2]
[310292584,1704463906710,-639.49927655,0.00031232,2]
[310292585,1704463906720,-500.0,0.00031232,2]
[310292586,1704463906729,-1954.72,0.00031232,2]
[310292587,1704463906739,-500.0,0.00031232,2]
[310292588,1704463906749,-1200.04,0.00031232,2]
[310292589,1704463906758,-500.0,0.00031232,2]
[310292590,1704463906768,-500.0,0.00031232,2]
[310292591,1704463906778,-500.0,0.00031232,2]
[310292592,1704463906788,-964.87,0.00031232,2]
[310292593,1704463906798,-1145.56,0.00031232,2]
[310292594,1704463906808,-500.0,0.00031232,2]
[310292595,1704463906818,-357.33187079,0.00031232,2]
[310292596,1704463906827,-500.0,0.00031232,2]
[310292597,1704463906837,-794.58,0.00031232,2]
[310292598,1704463906847,-534.82,0.00031232,2]
[310292599,1704463906857,-855.41,0.00031232,2]
[310292600,1704463906866,-500.0,0.00031232,2]
[310292601,1704463906875,-539.70687207,0.00031232,2]
[310292602,1704463906885,-773.85,0.00031232,2]
[310292603,1704463907090,-500.0,0.00031232,2]
[310292604,1704463907100,-500.0,0.00031232,2]
[310292605,1704463907109,-500.0,0.00031232,2]
[310292606,1704463907118,-500.0,0.00031232,2]
[310292607,1704463907128,-500.0,0.00031232,2]
[310292608,1704463907137,-1238.16,0.00031232,2]
[310292609,1704463907146,-361.03908532,0.00031232,2]
[310292610,1704463907156,-500.0,0.00031232,2]
[310292611,1704463907165,-500.0,0.00031232,2]
[310292612,1704463907174,-3690.73,0.00031232,2]
[310292613,1704463907184,-500.0,0.00031232,2]
[310292614,1704463907193,-500.0,0.00031232,2]
[310292615,1704463907204,-500.0,0.00031232,2]
[310292616,1704463907213,-500.0,0.00031232,2]
[310292617,1704463907223,-500.0,0.00031232,2]
[310292618,1704463907233,-692.03,0.00031232,2]
[310292619,1704463907242,-559.53,0.00031232,2]
[310292620,1704463907252,-500.0,0.00031232,2]
[310292621,1704463907261,-500.0,0.00031232,2]
[310292622,1704463907270,-500.0,0.00031232,2]
[310292623,1704463907280,-500.0,0.00031232,2]
[310292624,1704463907289,-500.0,0.00031232,2]
[310292625,1704463907299,-500.0,0.00031232,2]
[310292626,1704463907309,-500.0,0.00031232,2]
[310292627,1704463907318,-654.46,0.00031232,2]
[310292628,1704463907328,-954.52,0.00031232,2]
[310292629,1704463907338,-763.63,0.00031232,2]
[310292630,1704463907347,-511.23,0.00031232,2]
[310292631,1704463907357,-1216.82,0.00031232,2]
[310292632,1704463907367,-876.69,0.00031232,2]
[310292633,1704463907376,-1777.29,0.00031232,2]
[310292634,1704463907386,-500.0,0.00031232,2]
[310292635,1704463907395,-500.0,0.00031232,2]
[310292636,1704463907405,-500.0,0.00031232,2]
[310292637,1704463907415,-813.3,0.00031232,2]
[310292638,1704463907424,-1082.13,0.00031232,2]
[310292639,1704463907433,-677.81,0.00031232,2]
[310292640,1704463907444,-500.0,0.00031232,2]
[310292641,1704463907454,-1325.23,0.00031232,2]
[310292642,1704463907463,-493.90847048,0.00031232,2]
[310292643,1704463907473,-500.0,0.00031232,2]
[310292644,1704463907482,-500.0,0.00031232,2]
[310292645,1704463907492,-535.72623124,0.00031232,2]
[310292646,1704463907500,-500.0,0.00031232,2]
[310292647,1704463907510,-500.0,0.00031232,2]
[310292648,1704463907519,-3298.71,0.00031232,2]
[310292649,1704463907528,-648.57826321,0.00031232,2]
[310292650,1704463907538,-500.0,0.00031232,2]
[310292651,1704463907552,-500.0,0.00031232,2]
[310292652,1704463907562,-798.97,0.00031232,2]
[310292653,1704463907571,-500.0,0.00031232,2]
[310292654,1704463907581,-500.0,0.00031232,2]
[310292655,1704463907590,-900.8,0.00031232,2]
[310292656,1704463907600,-500.0,0.00031232,2]
[310292657,1704463907610,-1067.2,0.00031232,2]
[310292658,1704463907619,-2016.59,0.00031232,2]
[310292659,1704463907631,-500.0,0.00031232,2]
[310292660,1704463907641,-752.23,0.00031232,2]
[310292661,1704463907650,-430.313926,0.00031232,2]
[310292662,1704463907660,-1251.67,0.00031232,2]
[310292663,1704463907669,-500.0,0.00031232,2]
[310292664,1704463907679,-811.52,0.00031232,2]
[310292665,1704463907690,-500.0,0.00031232,2]
[310292666,1704463907700,-8654.29,0.00031232,2]
[310292667,1704463907710,-500.0,0.00031232,2]
[310292668,1704463907720,-500.0,0.00031232,2]
[310292669,1704463907729,-500.0,0.00031232,2]
[310292670,1704463907739,-208.68813149,0.00031232,2]
[310292671,1704463907748,-500.0,0.00031232,2]
[310292672,1704463907757,-500.0,0.00031232,2]
[310292673,1704463907767,-909.25,0.00031232,2]
[310292674,1704463907777,-511.88,0.00031232,2]
[310292675,1704463907786,-952.02,0.00031232,2]
[310292676,1704463907796,-963.43,0.00031232,2]
[310292677,1704463907806,-500.0,0.00031232,2]
[310292678,1704463907816,-500.0,0.00031232,2]
[310292679,1704463907825,-500.0,0.00031232,2]
[310292680,1704463907835,-1293.97,0.00031232,2]
[310292681,1704463907844,-2290.16,0.00031232,2]
[310292682,1704463907853,-5023.74,0.00031232,2]
[310292683,1704463907863,-1316.73,0.00031232,2]
[310292684,1704463907872,-960.97,0.00031232,2]
[310292685,1704463907881,-500.0,0.00031232,2]
[310292686,1704463907890,-500.0,0.00031232,2]
[310292687,1704463907900,-500.0,0.00031232,2]
[310292688,1704463907909,-500.0,0.00031232,2]
[310292689,1704463907919,-500.0,0.00031232,2]
[310292690,1704463907928,-184.62783355,0.00031232,2]
[310292691,1704463907938,-500.0,0.00031232,2]
[310292692,1704463907947,-500.0,0.00031232,2]
[310292693,1704463907956,-2888.44,0.00031232,2]
[310292694,1704463907966,-500.0,0.00031232,2]
[310292695,1704463907975,-780.49,0.00031232,2]
[310292696,1704463907984,-213.57,0.00031232,2]
[310292697,1704463907993,-536.28006743,0.00031232,2]
[310292698,1704463908002,-873.53,0.00031232,2]
[310292699,1704463908011,-840.85,0.00031232,2]
[310292700,1704463908020,-552.42,0.00031232,2]
[310292701,1704463908030,-500.0,0.00031232,2]
[310292702,1704463908040,-500.0,0.00031232,2]
[310292703,1704463908049,-17362.55,0.00031232,2]
[310292704,1704463908060,-2346.84,0.00031232,2]
[310292705,1704463908070,-4809.34,0.00031232,2]
[310292706,1704463908079,-500.0,0.00031232,2]
[310292707,1704463908089,-1000.0,0.00031232,2]
[310292708,1704463908097,-607.5,0.00031232,2]
[310292709,1704463908106,-619.58,0.00031232,2]
[310292710,1704463908116,-539.06,0.00031232,2]
[310292711,1704463908126,-500.0,0.00031232,2]
[310292712,1704463908136,-500.0,0.00031232,2]
[310292713,1704463908145,-514.81102343,0.00031232,2]
[310292714,1704463908155,-500.0,0.00031232,2]
[310292715,1704463908164,-500.0,0.00031232,2]
[310292716,1704463908174,-500.0,0.00031232,2]
[310292717,1704463908183,-9463.24,0.00031232,2]
[310292718,1704463908193,-500.0,0.00031232,2]
[310292719,1704463908202,-500.0,0.00031232,2]
[310292720,1704463908212,-500.0,0.00031232,2]
[310292721,1704463908221,-4907.15,0.00031232,2]
[310292722,1704463908230,-2724.92,0.00031232,2]
[310292723,1704463908240,-4324.26,0.00031232,2]
[310292724,1704463908249,-11882.1,0.00031232,2]
[310292725,1704463908259,-746.12,0.00031232,2]
[310292726,1704463908268,-845.63,0.00031232,2]
[310292727,1704463908277,-500.0,0.00031232,2]
[310292728,1704463908286,-500.0,0.00031232,2]
[310292729,1704463908297,-500.0,0.00031232,2]
[310292730,1704463908306,-500.0,0.00031232,2]
[310292731,1704463908316,-500.0,0.00031232,2]
[310292732,1704463908325,-3292.08,0.00031232,2]
[310292733,1704463908334,-500.0,0.00031232,2]
[310292734,1704463908343,-500.0,0.00031232,2]
[310292735,1704463908353,-500.0,0.00031232,2]
[310292736,1704463908364,-918.77,0.00031232,2]
[310292737,1704463908373,-644.83,0.00031232,2]
[310292738,1704463908382,-3344.35,0.00031232,2]
[310292739,1704463908391,-1395.08,0.00031232,2]
[310292740,1704463908400,-500.0,0.00031232,2]
[310292741,1704463908410,-500.0,0.00031232,2]
[310292742,1704463908419,-500.0,0.00031232,2]
[310292743,1704463908428,-500.0,0.00031232,2]
[310292744,1704463908437,-613.87,0.00031232,2]
[310292745,1704463908446,-500.0,0.00031232,2]
[310292746,1704463908456,-500.0,0.00031232,2]
[310292747,1704463908466,-1259.17,0.00031232,2]
[310292748,1704463908476,-500.0,0.00031232,2]
[310292749,1704463908485,-2954.54,0.00031232,2]
[310292750,1704463908494,-500.0,0.00031232,2]
[310292751,1704463908503,-500.0,0.00031232,2]
[310292752,1704463908512,-737.12,0.00031232,2]
[310292753,1704463908522,-2366.41,0.00031232,2]
[310292754,1704463908532,-352.0037373,0.00031232,2]
[310292755,1704463908542,-327.36926682,0.00031232,2]
[310292756,1704463908551,-500.0,0.00031232,2]
[310292757,1704463908561,-500.0,0.00031232,2]
[310292758,1704463908570,-5440.99,0.00031232,2]
[310292759,1704463908580,-500.0,0.00031232,2]
[310292760,1704463908589,-3361.08,0.00031232,2]
[310292761,1704463908599,-500.0,0.00031232,2]
[310292762,1704463908609,-1558.45,0.00031232,2]
[310292763,1704463908619,-500.0,0.00031232,2]
[310292764,1704463908633,-500.0,0.00031232,2]
[310292765,1704463908642,-500.0,0.00031232,2]
[310292766,1704463908652,-1062.83,0.00031232,2]
[310292767,1704463908662,-500.0,0.00031232,2]
[310292768,1704463908671,-500.0,0.00031232,2]
[310292769,1704463908681,-812.59,0.00031232,2]
[310292770,1704463908691,-646.75,0.00031232,2]
[310292771,1704463908701,-500.0,0.00031232,2]
[310292772,1704463908711,-1323.29,0.00031232,2]
[310292773,1704463908720,-500.0,0.00031232,2]
[310292774,1704463908730,-16516.01,0.00031232,2]
[310292775,1704463908739,-747.13,0.00031232,2]
[310292776,1704463908749,-8220.31,0.00031232,2]
[310292777,1704463908758,-500.0,0.00031232,2]
[310292778,1704463908768,-500.0,0.00031232,2]
[310292779,1704463908777,-500.0,0.00031232,2]
[310292780,1704463908787,-500.0,0.00031232,2]
[310292781,1704463908800,-1218.24,0.00031232,2]
[310292782,1704463908810,-678.9,0.00031232,2]
[310292783,1704463908821,-500.0,0.00031232,2]
[310292784,1704463908831,-509.33,0.00031232,2]
[310292785,1704463908843,-1093.85,0.00031232,2]
[310292786,1704463908855,-500.0,0.00031232,2]
[310292787,1704463908865,-558.79560404,0.00031232,2]
[310292788,1704463908877,-500.0,0.00031232,2]
[310292789,1704463908887,-625.64,0.00031232,2]
[310292790,1704463908897,-500.0,0.00031232,2]
[310292791,1704463908906,-500.0,0.00031232,2]
[310292792,1704463908915,-528.93,0.00031232,2]
[310292793,1704463908925,-500.0,0.00031232,2]
[310292794,1704463908934,-1229.71,0.00031232,2]
[310292795,1704463908945,-500.0,0.00031232,2]
[310292796,1704463908954,-500.0,0.00031232,2]
[310292797,1704463908964,-500.0,0.00031232,2]
[310292798,1704463908974,-696.27,0.00031232,2]
[310292799,1704463908984,-500.0,0.00031232,2]
[310292800,1704463908994,-906.38,0.00031232,2]
[310292801,1704463909004,-500.0,0.00031232,2]
[310292802,1704463909015,-1228.93,0.00031232,2]
[310292803,1704463909026,-500.0,0.00031232,2]
[310292804,1704463909035,-500.0,0.00031232,2]
[310292805,1704463909045,-1060.36,0.00031232,2]
[310292806,1704463909056,-1479.47,0.00031232,2]
[310292807,1704463909066,-500.0,0.00031232,2]
[310292808,1704463909077,-1559.68,0.00031232,2]
[310292809,1704463909088,-500.0,0.00031232,2]
[310292810,1704463909097,-500.0,0.00031232,2]
[310292811,1704463909107,-500.0,0.00031232,2]
[310292812,1704463909117,-535.98,0.00031232,2]
[310292813,1704463909127,-1024.05,0.00031232,2]
[310292814,1704463909136,-20552.87,0.00031232,2]
[310292815,1704463909146,-732.24,0.00031232,2]
[310292816,1704463909155,-500.0,0.00031232,2]
[310292817,1704463909165,-532.04457942,0.00031232,2]
[310292818,1704463909174,-500.0,0.00031232,2]
[310292819,1704463909183,-500.0,0.00031232,2]
[310292820,1704463909192,-764.89,0.00031232,2]
[310292821,1704463909201,-1384.47,0.00031232,2]
[310292822,1704463909210,-500.0,0.00031232,2]
[310292823,1704463909220,-2343.7,0.00031232,2]
[310292824,1704463909229,-855.82,0.00031232,2]
[310292825,1704463909239,-500.0,0.00031232,2]
[310292826,1704463909249,-1443.03,0.00031232,2]
[310292827,1704463909258,-500.0,0.00031232,2]
[310292828,1704463909268,-500.0,0.00031232,2]
[310292829,1704463909278,-1467.75,0.00031232,2]
[310292830,1704463909287,-500.0,0.00031232,2]
[310292831,1704463909297,-2427.76,0.00031232,2]
[310292832,1704463909307,-500.0,0.00031232,2]
[310292833,1704463909317,-272.91395869,0.00031232,2]
[310292834,1704463909326,-500.0,0.00031232,2]
[310292835,1704463909336,-500.0,0.00031232,2]
[310292836,1704463909346,-1262.81,0.00031232,2]
[310292837,1704463909355,-502.15,0.00031232,2]
[310292838,1704463909364,-976.69,0.00031232,2]
[310292839,1704463909374,-500.0,0.00031232,2]
[310292840,1704463909383,-963.68,0.00031232,2]
[310292841,1704463909392,-1404.49,0.00031232,2]
[310292842,1704463909401,-500.0,0.00031232,2]
[310292843,1704463909411,-574.8622685,0.00031232,2]
[310292844,1704463909420,-1710.42,0.00031232,2]
[310292845,1704463909430,-1043.98,0.00031232,2]
[310292846,1704463909439,-500.0,0.00031232,2]
[310292847,1704463909449,-827.77,0.00031232,2]
[310292848,1704463909460,-539.15728612,0.00031232,2]
[310292849,1704463909470,-500.0,0.00031232,2]
[310292850,1704463909479,-670.86,0.00031232,2]
[310292851,1704463909489,-552.27,0.00031232,2]
[310292852,1704463909499,-276.99274612,0.00031232,2]
[310292853,1704463909508,-2031.67,0.00031232,2]
[310292854,1704463909517,-500.0,0.00031232,2]
[310292855,1704463909527,-500.0,0.00031232,2]
[310292856,1704463909536,-543.20851604,0.00031232,2]
[310292857,1704463909545,-737.13,0.00031232,2]
[310292858,1704463909557,-7439.39,0.00031232,2]
[310292859,1704463909567,-593.61,0.00031232,2]
[310292860,1704463909576,-973.07,0.00031232,2]
[310292861,1704463909588,-563.27,0.00031232,2]
[310292862,1704463909597,-526.81483267,0.00031232,2]
[310292863,1704463909606,-585.98,0.00031232,2]
[310292864,1704463909616,-500.0,0.00031232,2]
[310292865,1704463909626,-500.0,0.00031232,2]
[310292866,1704463909636,-878.72,0.00031232,2]
[310292867,1704463909645,-500.0,0.00031232,2]
[310292868,1704463909656,-1022.6,0.00031232,2]
[310292869,1704463909666,-500.0,0.00031232,2]
[310292870,1704463909677,-500.0,0.00031232,2]
[310292871,1704463909687,-1959.09,0.00031232,2]
[310292872,1704463909698,-732.57,0.00031232,2]
[310292873,1704463909708,-11053.17,0.00031232,2]
[310292874,1704463909718,-500.0,0.00031232,2]
[310292875,1704463909729,-757.66,0.00031232,2]
[310292876,1704463909740,-500.0,0.00031232,2]
[310292877,1704463909751,-500.0,0.00031232,2]
[310292878,1704463909761,-511.54,0.00031232,2]
[310292879,1704463909772,-500.0,0.00031232,2]
[310292880,1704463909781,-1241.64,0.00031232,2]
[310292881,1704463909791,-3419.36,0.00031232,2]
[310292882,1704463909808,-1092.45,0.00031232,2]
[310292883,1704463909819,-2084.07,0.00031232,2]
[310292884,1704463909828,-558.28,0.00031232,2]
[310292885,1704463909838,-528.0399575,0.00031232,2]
[310292886,1704463909848,-500.0,0.00031232,2]
[310292887,1704463909858,-500.0,0.00031232,2]
[310292888,1704463909868,-1946.6,0.00031232,2]
[310292889,1704463909877,-500.0,0.00031232,2]
[310292890,1704463909887,-1013.42,0.00031232,2]
[310292891,1704463909897,-500.0,0.00031232,2]
[310292892,1704463909906,-500.0,0.00031232,2]
[310292893,1704463909915,-500.0,0.00031232,2]
[310292894,1704463909924,-500.0,0.00031232,2]
[310292895,1704463909934,-1212.22,0.00031232,2]
[310292896,1704463909944,-702.4,0.00031232,2]
[310292897,1704463909953,-2361.2,0.00031232,2]
[310292898,1704463909963,-500.0,0.00031232,2]
[310292899,1704463909973,-500.0,0.00031232,2]
[310292900,1704463909982,-1128.19,0.00031232,2]
[310292901,1704463909992,-500.0,0.00031232,2]
[310292902,1704463910001,-508.24253286,0.00031232,2]
[310292903,1704463910011,-764.39,0.00031232,2]
[310292904,1704463910021,-500.0,0.00031232,2]
[310292905,1704463910030,-517.07,0.00031232,2]
[310292906,1704463910040,-500.0,0.00031232,2]
[310292907,1704463910053,-1542.41,0.00031232,2]
[310292908,1704463910063,-1440.35,0.00031232,2]
[310292909,1704463910073,-500.0,0.00031232,2]
[310292910,1704463910082,-500.0,0.00031232,2]
[310292911,1704463910092,-715.0,0.00031232,2]
[310292912,1704463910102,-500.0,0.00031232,2]
[310292913,1704463910112,-500.0,0.00031232,2]
[310292914,1704463910298,-2358.36,0.00031232,2]
[310292915,1704463910309,-1017.07,0.00031232,2]
[310292916,1704463910318,-500.0,0.00031232,2]
[310292917,1704463910328,-5040.24,0.00031232,2]
[310292918,1704463910338,-500.0,0.00031232,2]
[310292919,1704463910348,-1054.48,0.00031232,2]
[310292920,1704463910358,-500.0,0.00031232,2]
[310292921,1704463910367,-500.0,0.00031232,2]
[310292922,1704463910377,-500.0,0.00031232,2]
[310292923,1704463910386,-500.0,0.00031232,2]
[310292924,1704463910396,-915.19,0.00031232,2]
[310292925,1704463910405,-8316.18,0.00031232,2]
[310292926,1704463910414,-500.0,0.00031232,2]
[310292927,1704463910423,-1182.97,0.00031232,2]
[310292928,1704463910433,-5436.81,0.00031232,2]
[310292929,1704463910443,-500.0,0.00031232,2]
[310292930,1704463910454,-500.0,0.00031232,2]
[310292931,1704463910464,-500.0,0.00031232,2]
[310292932,1704463910474,-826.79,0.00031232,2]
[310292933,1704463910484,-500.0,0.00031232,2]
[310292934,1704463910494,-709.6,0.00031232,2]
[310292935,1704463910504,-500.0,0.00031232,2]
[310292936,1704463910515,-600.85019388,0.00031232,2]
[310292937,1704463910524,-526.58,0.00031232,2]
[310292938,1704463910534,-574.8,0.00031232,2]
[310292939,1704463910544,-856.02,0.00031232,2]
[310292940,1704463910556,-2833.48,0.00031232,2]
[310292941,1704463910565,-701.77,0.00031232,2]
[310292942,1704463910575,-557.01,0.00031232,2]
[310292943,1704463910584,-151.0,0.00031232,7]
[310292944,1704463910594,-500.0,0.00031281,2]
[310292945,1704463910603,-500.0,0.00031304,2]
[310292946,1704463910616,-167.0,0.00031355,2]
[310292947,1704463910627,-76364.1082375,0.00031403,2]
[310292948,1704463910640,-365.60499966,0.00031422,2]
[310292949,1704463910649,-500.0,0.00031425,2]
[310292950,1704463910659,-267.96898383,0.00031425,2]
[310292951,1704463910669,-619.51619374,0.00031425,2]
[310292952,1704463910679,-173.17,0.00031425,2]
[310292953,1704463910689,-513.8948188,0.00031425,2]
[310292954,1704463910699,-282.04786252,0.00031425,2]
[310292955,1704463910709,-500.0,0.00031425,15]